bitfinex/quotes_BTCUSD_20241205
["timestamp","ask_amount","ask_price","bid_price","bid_amount"]
[1733401093201,0.92652402,102840.0,102830.0,0.52293371]
[1733401093430,1.02444324,102840.0,102830.0,0.52293371]
[1733401093649,0.94744324,102840.0,102830.0,0.52293371]
[1733401094297,0.94744324,102840.0,102830.0,0.42568371]
[1733401094510,0.94744324,102840.0,102830.0,0.37733371]
[1733401094750,0.94744324,102840.0,102830.0,0.33843371]
[1733401095186,0.42942174,102800.0,102790.0,0.0017352]
[1733401095403,0.62331594,102800.0,102790.0,0.0017352]
[1733401095650,0.54631594,102800.0,102790.0,0.0017352]
[1733401095913,0.1,102790.0,102780.0,0.1517352]
[1733401096115,0.50321679,102790.0,102780.0,0.1517352]
[1733401096331,0.61218653,102790.0,102780.0,0.1517352]
[1733401096561,0.62750575,102790.0,102780.0,0.15232202]
[1733401097284,0.42061679,102790.0,102780.0,0.15232202]
[1733401098180,0.43468399,102790.0,102780.0,0.15232202]
[1733401098852,0.40831425,102790.0,102780.0,0.15232202]
[1733401099071,0.30324705,102790.0,102780.0,0.15232202]
[1733401099274,0.41224705,102790.0,102780.0,0.15232202]
[1733401099700,0.49708734,102790.0,102780.0,0.15232202]
[1733401099917,0.51221679,102790.0,102780.0,0.15232202]
[1733401100138,0.52121679,102790.0,102780.0,0.15232202]
[1733401100357,0.67121679,102790.0,102780.0,0.15232202]
[1733401100845,0.66221679,102790.0,102780.0,0.15232202]
[1733401101062,0.75113601,102790.0,102780.0,0.15232202]
[1733401101273,0.75113601,102790.0,102780.0,0.15332202]
[1733401101487,0.75113601,102790.0,102780.0,0.15232202]
[1733401101703,0.69883601,102790.0,102780.0,0.15232202]
[1733401101915,0.81767415,102790.0,102780.0,0.00058682]
[1733401102353,0.71770441,102790.0,102780.0,0.00058682]
[1733401102802,0.70870441,102790.0,102780.0,0.00058682]
[1733401103035,0.71923025,102790.0,102780.0,0.00058682]
[1733401103278,0.62131103,102790.0,102780.0,0.00058682]
[1733401103492,0.73031103,102790.0,102780.0,0.00058682]
[1733401103703,0.58261103,102790.0,102780.0,0.00058682]
[1733401103910,0.57361103,102790.0,102780.0,0.00058682]
[1733401104121,0.59161103,102790.0,102780.0,0.00058682]
[1733401104515,0.68053025,102790.0,102780.0,0.00058682]
[1733401104769,0.68953025,102790.0,102780.0,0.00058682]
[1733401105442,0.78953025,102790.0,102780.0,0.00058682]
[1733401105657,0.68953025,102790.0,102780.0,0.00058682]
[1733401105869,0.78953025,102790.0,102780.0,0.00058682]
[1733401106354,0.68953025,102790.0,102780.0,0.00058682]
[1733401106857,0.80598049,102790.0,102780.0,0.00058682]
[1733401107098,0.70806127,102790.0,102780.0,0.00058682]
[1733401108778,0.60806127,102790.0,102780.0,0.00058682]
[1733401110192,0.63806127,102790.0,102780.0,0.00058682]
[1733401111151,0.76443101,102790.0,102780.0,8.2e-07]
[1733401111376,0.90895023,102790.0,102780.0,8.2e-07]
[1733401111865,0.41252948,102780.0,102770.0,8.2e-07]
[1733401112126,0.51220553,102780.0,102770.0,0.00017701]
[1733401113277,0.52120553,102780.0,102770.0,0.00017701]
[1733401114475,0.53020553,102780.0,102770.0,0.00017701]
[1733401114741,0.62812475,102780.0,102770.0,1e-08]
[1733401114966,0.194609,102770.0,102760.0,4.1e-07]
[1733401115185,0.40325479,102770.0,102760.0,5.4e-07]
[1733401116406,0.41225479,102770.0,102760.0,5.4e-07]
[1733401116660,0.50712963,102770.0,102760.0,5.4e-07]
[1733401116875,0.61609937,102770.0,102760.0,5.4e-07]
[1733401117076,0.50712963,102770.0,102760.0,5.4e-07]
[1733401117786,0.51612963,102770.0,102760.0,5.4e-07]
[1733401119440,0.56228505,102770.0,102760.0,5.4e-07]
[1733401119934,0.68756723,102770.0,102760.0,5.4e-07]
[1733401120411,0.66956723,102770.0,102760.0,5.4e-07]
[1733401120655,0.67856723,102770.0,102760.0,5.4e-07]
[1733401120890,0.68756723,102770.0,102760.0,5.4e-07]
[1733401121123,0.78548645,102770.0,102760.0,5.4e-07]
[1733401121492,0.68548645,102770.0,102760.0,5.4e-07]
[1733401122134,0.67648645,102770.0,102760.0,5.4e-07]
[1733401122559,0.68548645,102770.0,102760.0,5.4e-07]
[1733401122787,0.58756723,102770.0,102760.0,5.4e-07]
[1733401123976,0.194692,102730.0,102710.0,0.194714]
[1733401124206,0.389385,102730.0,102710.0,0.1956875]
[1733401124420,0.389385,102730.0,102710.0,0.49937024]
[1733401125358,0.389385,102730.0,102710.0,0.499958]
[1733401125554,0.389385,102730.0,102710.0,0.501958]
[1733401126224,0.194692,102730.0,102710.0,0.501958]
[1733401126419,0.194692,102730.0,102720.0,0.10896974]
[1733401126903,0.194692,102730.0,102720.0,0.23866974]
[1733401127621,0.194692,102730.0,102720.0,0.23966974]
[1733401128659,0.194692,102730.0,102720.0,0.24066974]
[1733401131355,0.389356,102740.0,102730.0,0.1284]
[1733401131574,0.389356,102740.0,102730.0,0.23736974]
[1733401131845,0.389356,102740.0,102730.0,0.1284]
[1733401132712,0.389356,102740.0,102730.0,0.1294]
[1733401133593,0.389356,102740.0,102730.0,0.1304]
[1733401133804,0.389303,102750.0,102740.0,0.08]
[1733401134014,0.389303,102750.0,102740.0,0.1298]
[1733401134458,0.389303,102750.0,102740.0,0.23876974]
[1733401134681,0.389303,102750.0,102740.0,0.1298]
[1733401135346,0.398303,102750.0,102740.0,0.1298]
[1733401135556,0.407303,102750.0,102740.0,0.1298]
[1733401136639,0.407303,102750.0,102740.0,0.131537]
[1733401137089,0.018,102750.0,102740.0,0.24050674]
[1733401137303,0.018,102750.0,102740.0,0.43517274]
[1733401137753,0.018,102750.0,102740.0,0.24050674]
[1733401137971,0.212647,102750.0,102740.0,0.24050674]
[1733401138187,0.203647,102750.0,102740.0,0.24050674]
[1733401138401,0.009,102750.0,102740.0,0.43517274]
[1733401138622,0.583916,102760.0,102740.0,0.35617274]
[1733401138840,0.389275,102760.0,102750.0,0.0757]
[1733401139307,0.38885865,102760.0,102750.0,0.0757]
[1733401140001,0.733865,102770.0,102750.0,0.18466974]
[1733401140225,0.63909285,102770.0,102760.0,0.1227]
[1733401141152,0.5394168,102770.0,102760.0,0.1227]
[1733401141361,0.5394168,102770.0,102760.0,0.23166974]
[1733401141569,0.3537938,102770.0,102760.0,0.23166974]
[1733401141775,0.1591758,102770.0,102760.0,0.23166974]
[1733401142643,0.1681758,102770.0,102760.0,0.23166974]
[1733401142887,0.3627848,102770.0,102760.0,0.23166974]
[1733401143745,0.3627848,102770.0,102760.0,0.1227]
[1733401143958,0.67143059,102770.0,102750.0,0.0787]
[1733401144177,0.29431905,102760.0,102750.0,0.0787]
[1733401144394,0.48896205,102760.0,102750.0,0.0787]
[1733401145723,0.48896205,102760.0,102750.0,0.0797]
[1733401145939,0.48896205,102760.0,102750.0,0.001]
[1733401146156,0.48896205,102760.0,102750.0,0.002]
[1733401146566,0.58688127,102760.0,102750.0,0.002]
[1733401146819,0.69585101,102760.0,102750.0,0.002]
[1733401147024,0.74793179,102760.0,102750.0,0.002]
[1733401147247,0.94793179,102760.0,102750.0,0.002]
[1733401147678,0.84793179,102760.0,102750.0,0.002]
[1733401148108,0.84293179,102760.0,102750.0,0.002]
[1733401148548,0.94085101,102760.0,102750.0,0.001]
[1733401148776,0.94171901,102760.0,102750.0,0.001]
[1733401148986,0.294647,102750.0,102740.0,0.001737]
[1733401149195,0.50329279,102750.0,102740.0,0.001737]
[1733401149429,0.65329279,102750.0,102740.0,0.001737]
[1733401149637,0.54432305,102750.0,102740.0,0.001737]
[1733401151151,0.55332305,102750.0,102740.0,0.001737]
[1733401151572,0.45332305,102750.0,102740.0,0.001737]
[1733401151782,0.67129279,102750.0,102740.0,0.001737]
[1733401152709,0.47664579,102750.0,102740.0,0.001737]
[1733401152920,0.36767605,102750.0,102740.0,0.001737]
[1733401153130,0.77129279,102750.0,102740.0,0.001737]
[1733401154414,0.194685,102730.0,102720.0,0.083]
[1733401154636,0.40333079,102730.0,102720.0,0.083]
[1733401155080,0.194704,102720.0,102710.0,0.124936]
[1733401155296,0.29438005,102720.0,102710.0,0.077136]
[1733401156817,0.29438005,102720.0,102710.0,0.078136]
[1733401157071,0.194704,102720.0,102710.0,0.18710574]
[1733401157285,0.194704,102720.0,102710.0,0.2361935]
[1733401157500,0.389379,102730.0,102720.0,0.081]
[1733401157725,0.389345,102740.0,102730.0,0.081]
[1733401157946,0.48902105,102740.0,102730.0,0.081]
[1733401158161,0.194668,102740.0,102730.0,0.18996974]
[1733401158385,0.194668,102740.0,102730.0,0.23846974]
[1733401158592,0.539311,102750.0,102740.0,0.0792]
[1733401158802,0.344655,102750.0,102740.0,0.18816974]
[1733401159245,0.15,102750.0,102740.0,0.18816974]
[1733401159702,0.15,102750.0,102740.0,0.38283574]
[1733401160364,0.15,102750.0,102740.0,0.46714204]
[1733401160571,0.15,102750.0,102740.0,0.38794204]
[1733401161248,0.15,102750.0,102740.0,0.61958783]
[1733401161918,0.15,102750.0,102740.0,0.63931662]
[1733401162355,0.15,102750.0,102740.0,0.47601179]
[1733401162842,0.390133,102760.0,102740.0,0.47601179]
[1733401163072,0.390133,102760.0,102750.0,0.10896974]
[1733401163297,0.195496,102760.0,102750.0,0.10896974]
[1733401163496,0.195496,102760.0,102750.0,0.19016974]
[1733401163784,0.000868,102760.0,102750.0,0.19016974]
[1733401164021,0.000868,102760.0,102750.0,0.38481674]
[1733401164970,0.000868,102760.0,102750.0,0.19016974]
[1733401166156,0.195496,102760.0,102750.0,0.19016974]
[1733401166397,0.000868,102760.0,102750.0,0.19016974]
[1733401166881,0.000868,102760.0,102750.0,0.38481674]
[1733401167385,0.000868,102760.0,102750.0,0.19016974]
[1733401167610,0.000868,102760.0,102750.0,0.38481674]
[1733401168829,0.000868,102760.0,102750.0,0.19016974]
[1733401169518,0.000868,102760.0,102750.0,0.38481674]
[1733401169738,0.000868,102760.0,102750.0,0.19016974]
[1733401171134,0.000868,102760.0,102750.0,0.38481674]
[1733401172968,0.000868,102760.0,102750.0,0.59346253]
[1733401173207,0.000868,102760.0,102750.0,0.63896253]
[1733401175519,0.000868,102760.0,102750.0,0.52999279]
[1733401175764,0.000868,102760.0,102750.0,0.62731279]
[1733401175994,0.000868,102760.0,102750.0,0.73628253]
[1733401176226,0.000868,102760.0,102750.0,0.75172899]
[1733401176416,0.000868,102760.0,102750.0,0.64275925]
[1733401176777,0.000868,102760.0,102750.0,0.75172899]
[1733401176979,0.000868,102760.0,102750.0,0.64275925]
[1733401178050,0.000868,102760.0,102750.0,0.66248197]
[1733401179556,0.000868,102760.0,102750.0,0.92145171]
[1733401179765,0.000868,102760.0,102750.0,1.05656701]
[1733401182947,0.000868,102760.0,102750.0,0.84759727]
[1733401183151,0.000868,102760.0,102750.0,0.81248197]
[1733401183372,0.000868,102760.0,102750.0,0.38946646]
[1733401183571,0.000868,102760.0,102750.0,0.34396646]
[1733401183823,0.000868,102760.0,102750.0,0.53861346]
[1733401183997,0.000868,102760.0,102750.0,0.34396646]
[1733401184399,0.000868,102760.0,102750.0,0.53861346]
[1733401184912,0.195496,102760.0,102750.0,0.32852]
[1733401185117,0.195496,102760.0,102750.0,0.24732]
[1733401188941,0.195496,102760.0,102750.0,0.35628974]
[1733401190228,0.000868,102760.0,102750.0,0.55093674]
[1733401190478,0.000868,102760.0,102750.0,0.65990648]
[1733401191364,0.000868,102760.0,102750.0,0.78610648]
[1733401191615,0.000868,102760.0,102750.0,0.88578253]
[1733401191833,0.000868,102760.0,102750.0,0.92089783]
[1733401195314,0.000868,102760.0,102750.0,0.65063144]
[1733401195999,0.000868,102760.0,102750.0,0.74795144]
[1733401198117,0.000868,102760.0,102750.0,0.76190917]
[1733401203887,0.000868,102760.0,102750.0,0.65293943]
[1733401204103,0.000868,102760.0,102750.0,0.76190917]
[1733401204315,0.000868,102760.0,102750.0,0.65293943]
[1733401206483,0.000868,102760.0,102750.0,0.76190917]
[1733401209318,0.000868,102760.0,102750.0,0.76364437]
[1733401209976,0.000868,102760.0,102750.0,0.75364437]
[1733401210212,0.000868,102760.0,102750.0,0.61095525]
[1733401210415,0.000868,102760.0,102750.0,0.80560225]
[1733401211274,0.000868,102760.0,102750.0,0.92860225]
[1733401212563,0.000868,102760.0,102750.0,0.71066277]
[1733401212775,0.000868,102760.0,102750.0,0.92860225]
[1733401213670,0.000868,102760.0,102750.0,1.02860225]
[1733401215726,0.000868,102760.0,102750.0,1.05791243]
[1733401215946,0.0008675,102770.0,102760.0,0.519428]
[1733401216160,0.0010433,102770.0,102760.0,0.93618909]
[1733401216306,0.0010433,102770.0,102760.0,1.06280674]
[1733401216511,0.0010433,102770.0,102760.0,1.03350309]
[1733401216715,0.0010433,102770.0,102760.0,1.17176108]
[1733401217127,5e-07,102780.0,102770.0,0.524709]
[1733401217423,5e-07,102780.0,102770.0,0.90672808]
[1733401217680,5e-07,102780.0,102770.0,1.00400275]
[1733401217881,5e-07,102780.0,102770.0,0.97474483]
[1733401218099,0.0008289,102790.0,102780.0,0.39459]
[1733401218306,0.0008289,102790.0,102780.0,0.87042083]
[1733401218516,0.0008289,102790.0,102780.0,0.96771583]
[1733401218735,0.0008289,102790.0,102780.0,0.30928635]
[1733401218958,0.0008289,102790.0,102780.0,0.50053079]
[1733401219387,0.0008289,102790.0,102780.0,0.40085474]
[1733401219853,0.0008289,102790.0,102780.0,0.40185474]
[1733401220751,0.0008289,102790.0,102780.0,0.40285474]
[1733401221173,0.0008289,102790.0,102780.0,0.40185474]
[1733401221618,0.0008289,102790.0,102780.0,0.40285474]
[1733401221832,0.00056711,102790.0,102780.0,0.40285474]
[1733401223612,0.00056711,102790.0,102780.0,0.61150053]
[1733401223863,0.00056711,102790.0,102780.0,0.83870053]
[1733401224093,0.00056711,102790.0,102780.0,0.96757227]
[1733401224303,0.00056711,102790.0,102780.0,1.11757227]
[1733401225124,0.00056711,102790.0,102780.0,1.08870053]
[1733401225796,0.00056711,102790.0,102780.0,0.98870053]
[1733401226454,0.00056711,102790.0,102780.0,1.08870053]
[1733401227596,0.00056711,102790.0,102780.0,1.10283524]
[1733401228045,0.00056711,102790.0,102780.0,1.13170698]
[1733401230469,0.00056711,102790.0,102780.0,0.9137675]
[1733401230681,0.00056711,102790.0,102780.0,1.13170698]
[1733401232381,0.00056711,102790.0,102780.0,0.83982198]
[1733401232852,0.00056711,102790.0,102780.0,1.06647698]
[1733401233085,0.00056711,102790.0,102780.0,1.16376698]
[1733401233711,0.00056711,102790.0,102780.0,1.13070198]
[1733401234998,0.00056711,102790.0,102780.0,0.9127625]
[1733401235224,0.00056711,102790.0,102780.0,0.88389076]
[1733401235440,0.00056711,102790.0,102780.0,1.10183024]
[1733401235682,0.00056711,102790.0,102780.0,1.10283024]
[1733401236337,0.00056711,102790.0,102780.0,1.13170198]
[1733401241895,0.277715,102820.0,102810.0,0.10896974]
[1733401242153,0.277715,102820.0,102810.0,0.20623674]
[1733401242819,0.277715,102820.0,102810.0,0.40076974]
[1733401243237,0.27788651,102820.0,102810.0,0.40176974]
[1733401243866,0.27788651,102820.0,102810.0,0.40276974]
[1733401244297,0.27788651,102820.0,102810.0,0.20823674]
[1733401245456,0.27875391,102820.0,102810.0,0.20823674]
[1733401246727,0.27875391,102820.0,102810.0,0.22199528]
[1733401248851,0.08423891,102820.0,102810.0,0.41652828]
[1733401249621,0.27875291,102820.0,102810.0,0.41652828]
[1733401249849,0.27875291,102820.0,102810.0,0.45541628]
[1733401252217,0.00103891,102820.0,102810.0,0.66406207]
[1733401253060,0.00103891,102820.0,102810.0,0.55509233]
[1733401253790,0.00103891,102820.0,102810.0,0.3156737]
[1733401253997,0.00103891,102820.0,102810.0,0.47880353]
[1733401254211,0.00103891,102820.0,102810.0,0.67333653]
[1733401254455,0.00103891,102820.0,102810.0,0.66162679]
[1733401254894,0.00103891,102820.0,102810.0,0.77059653]
[1733401255098,0.00103891,102820.0,102810.0,0.78399788]
[1733401258127,0.000868,102840.0,102830.0,0.30346474]
[1733401258579,0.000868,102840.0,102830.0,0.40071274]
[1733401260360,0.000868,102840.0,102830.0,0.40171274]
[1733401263725,0.195344,102840.0,102830.0,0.20721774]
[1733401264000,0.195344,102840.0,102830.0,0.40171274]
[1733401264222,0.273744,102840.0,102830.0,0.098248]
[1733401264465,0.321044,102840.0,102830.0,0.098248]
[1733401268268,0.42072005,102840.0,102830.0,0.098248]
[1733401271162,0.88865953,102840.0,102830.0,0.098248]
[1733401271638,0.48536474,102830.0,102820.0,0.05389398]
[1733401271879,0.53144079,102830.0,102820.0,0.05389398]
[1733401272314,0.63144079,102830.0,102820.0,0.05389398]
[1733401272530,0.194552,102800.0,102790.0,0.0017346]
[1733401272742,0.36112805,102800.0,102790.0,0.00190611]
[1733401274674,0.36112805,102800.0,102790.0,0.00290611]
[1733401277569,0.36113705,102800.0,102770.0,0.5113874]
[1733401277798,0.194579,102790.0,102770.0,0.5113874]
[1733401278014,0.583747,102790.0,102770.0,0.3167864]
[1733401278252,0.19459,102780.0,102770.0,0.20781666]
[1733401278475,0.389161,102790.0,102770.0,0.20781666]
[1733401278691,0.19459,102780.0,102770.0,0.01321666]
[1733401279123,0.19459,102780.0,102760.0,0.98710393]
[1733401279357,0.389161,102790.0,102770.0,0.194609]
[1733401279584,0.583744,102790.0,102770.0,0.194609]
[1733401279811,0.19459,102780.0,102760.0,0.79233778]
[1733401280029,0.19459,102780.0,102770.0,0.10896974]
[1733401280265,0.19459,102780.0,102770.0,0.30357874]
[1733401280478,0.583745,102790.0,102770.0,0.30357874]
[1733401280715,0.583745,102790.0,102760.0,0.68336804]
[1733401280716,0.19459,102780.0,102760.0,1.06765478]
[1733401281605,0.583746,102790.0,102770.0,0.30357874]
[1733401282516,0.389159,102790.0,102770.0,0.30357874]
[1733401282736,0.38916,102790.0,102770.0,0.49817874]
[1733401282957,0.38916,102790.0,102770.0,0.59547874]
[1733401283176,0.48880005,102800.0,102780.0,0.10896974]
[1733401283419,0.48880005,102800.0,102780.0,0.30355974]
[1733401283420,0.194571,102790.0,102780.0,0.30355974]
[1733401283633,0.194571,102790.0,102780.0,0.20626474]
[1733401285223,0.194571,102790.0,102780.0,0.097295]
[1733401285909,0.20687736,102830.0,102800.0,0.194547]
[1733401286124,0.59258705,102830.0,102810.0,0.10896974]
[1733401286587,0.78710005,102830.0,102810.0,0.097267]
[1733401286806,0.59258705,102830.0,102810.0,0.097267]
[1733401287039,0.78709905,102830.0,102810.0,0.097267]
[1733401287290,0.79627518,102830.0,102810.0,0.097267]
[1733401287498,0.8941944,102830.0,102810.0,0.097267]
[1733401287719,0.8851944,102830.0,102810.0,0.097267]
[1733401287942,0.8851944,102830.0,102810.0,0.20623674]
[1733401288170,0.59276318,102830.0,102810.0,0.40076774]
[1733401288386,0.51186318,102830.0,102810.0,0.40076774]
[1733401289055,0.51186318,102830.0,102810.0,0.47866774]
[1733401289056,0.70637018,102830.0,102810.0,0.47866774]
[1733401289500,0.70637218,102830.0,102810.0,0.47866774]
[1733401289717,0.51186318,102830.0,102810.0,0.47866974]
[1733401290897,0.51186318,102830.0,102810.0,0.28413674]
[1733401291131,0.70637318,102830.0,102810.0,0.28413674]
[1733401291380,0.51186318,102830.0,102810.0,0.28413674]
[1733401291603,0.51186318,102830.0,102810.0,0.47866774]
[1733401291816,0.31735718,102830.0,102810.0,0.67319874]
[1733401292039,0.51273218,102830.0,102810.0,0.47866774]
[1733401292691,0.51273118,102830.0,102810.0,0.47866774]
[1733401293622,0.70723718,102830.0,102810.0,0.28413674]
[1733401294797,0.70723718,102830.0,102810.0,0.175167]
[1733401296012,0.194514,102820.0,102810.0,0.175167]
[1733401297040,0.70724318,102830.0,102810.0,0.175167]
[1733401297227,0.194514,102820.0,102810.0,0.175167]
[1733401298272,0.70724118,102830.0,102810.0,0.175167]
[1733401298693,0.70724118,102830.0,102810.0,0.47866974]
[1733401298694,0.51273118,102830.0,102810.0,0.47866974]
[1733401299121,0.70723818,102830.0,102810.0,0.47866974]
[1733401299523,0.70723818,102830.0,102810.0,0.49768171]
[1733401299743,0.194514,102820.0,102810.0,0.30314871]
[1733401300794,0.194514,102820.0,102810.0,0.097267]
[1733401303483,0.59453118,102830.0,102810.0,0.097267]
[1733401303697,0.00303915,102820.0,102810.0,0.2918]
[1733401303904,0.78903818,102830.0,102810.0,0.2918]
[1733401304113,0.59453118,102830.0,102810.0,0.2918]
[1733401304351,0.31822418,102830.0,102810.0,0.59529474]
[1733401304562,0.51272718,102830.0,102810.0,0.59528574]
[1733401305188,0.70723318,102830.0,102810.0,0.40076074]
[1733401305395,0.51272718,102830.0,102810.0,0.40076074]
[1733401305612,0.51272718,102830.0,102810.0,0.59528574]
[1733401306045,0.70723418,102830.0,102810.0,0.59528574]
[1733401306486,0.70723418,102830.0,102810.0,0.486316]
[1733401307358,0.02404413,102830.0,102820.0,0.10896974]
[1733401307584,0.02404413,102830.0,102820.0,0.55103228]
[1733401307803,0.02404413,102830.0,102820.0,0.64731679]
[1733401312051,0.02404413,102830.0,102820.0,0.68475914]
[1733401312471,0.02404413,102830.0,102820.0,0.73405606]
[1733401313545,0.02404413,102830.0,102820.0,0.74712716]
[1733401313964,0.00104413,102830.0,102820.0,0.74712716]
[1733401314406,0.00104413,102830.0,102820.0,0.89712716]
[1733401315842,0.00104413,102830.0,102820.0,0.8671137]
[1733401331385,0.00104413,102830.0,102820.0,0.82967135]
[1733401331824,0.00104413,102830.0,102820.0,0.78157135]
[1733401336152,0.00104413,102830.0,102820.0,0.78087498]
[1733401337566,0.00104413,102830.0,102820.0,0.88984472]
[1733401337797,0.00104413,102830.0,102820.0,0.84928946]
[1733401341321,0.00104413,102830.0,102820.0,0.81198075]
[1733401346222,0.00104413,102830.0,102820.0,0.91732663]
[1733401346431,0.00078418,102830.0,102820.0,0.88691723]
[1733401347958,0.00078418,102830.0,102820.0,0.81547869]
[1733401348628,0.00078418,102830.0,102820.0,0.81721389]
[1733401351573,0.00078418,102830.0,102820.0,0.88865243]
[1733401352783,0.00078418,102830.0,102820.0,0.95902948]
[1733401354877,0.00078418,102830.0,102820.0,0.84969968]
[1733401355089,0.00078418,102830.0,102820.0,0.81721389]
[1733401355504,0.00078418,102830.0,102820.0,0.88865243]
[1733401355713,0.00078418,102830.0,102820.0,0.81721389]
[1733401356958,0.00078418,102830.0,102820.0,0.65211812]
[1733401357171,0.00078418,102830.0,102820.0,0.68902251]
[1733401359532,0.00078418,102830.0,102820.0,0.54553174]
[1733401359751,0.00078418,102830.0,102820.0,0.74004574]
[1733401361062,0.00078418,102830.0,102820.0,0.46058822]
[1733401361289,0.00078418,102830.0,102820.0,0.6034653]
[1733401362860,0.00078418,102830.0,102820.0,0.64164701]
[1733401365074,0.00078418,102830.0,102820.0,0.71308555]
[1733401365304,0.00078418,102830.0,102820.0,0.70426973]
[1733401367057,0.00078418,102830.0,102820.0,0.64164701]
[1733401370625,0.00078418,102830.0,102820.0,0.87538432]
[1733401371553,0.00078418,102830.0,102820.0,0.8127616]
[1733401372201,0.00078418,102830.0,102820.0,0.74132306]
[1733401372415,0.00078418,102830.0,102820.0,0.8127616]
[1733401372634,0.12748418,102830.0,102820.0,0.08371966]
[1733401372851,0.42165523,102830.0,102820.0,0.08371966]
[1733401373920,0.49309377,102830.0,102820.0,0.08371966]
[1733401374139,0.42165523,102830.0,102820.0,0.08371966]
[1733401381038,0.77165523,102830.0,102820.0,0.08371966]
[1733401386207,0.57165523,102830.0,102820.0,0.08371966]
[1733401386419,0.57165523,102830.0,102820.0,0.19267513]
[1733401386420,0.52185523,102830.0,102820.0,0.19267513]
[1733401386632,0.52185523,102830.0,102820.0,0.08371966]
[1733401390279,0.63482696,102830.0,102820.0,0.08371966]
[1733401391588,0.57165523,102830.0,102820.0,0.08371966]
[1733401396517,0.8806107,102830.0,102820.0,0.08371966]
[1733401397340,0.67165523,102830.0,102820.0,0.08371966]
[1733401397589,0.67165523,102830.0,102820.0,0.19267513]
[1733401397590,0.00078418,102830.0,102820.0,0.19267513]
[1733401397793,0.00078418,102830.0,102820.0,0.38816157]
[1733401398007,0.19527918,102830.0,102820.0,0.08371966]
[1733401398941,0.29495523,102830.0,102820.0,0.08371966]
[1733401400551,0.52315523,102830.0,102820.0,0.08371966]
[1733401402612,0.62315523,102830.0,102820.0,0.08371966]
[1733401403733,0.62315523,102830.0,102820.0,0.06071966]
[1733401404080,0.63792633,102830.0,102820.0,0.06071966]
[1733401404281,0.194533,102810.0,102790.0,0.80050888]
[1733401404488,0.19550566,102810.0,102790.0,0.80050888]
[1733401404688,0.39003866,102810.0,102790.0,0.80050888]
[1733401404902,0.389066,102810.0,102790.0,0.80050788]
[1733401405774,0.389077,102810.0,102790.0,0.60594588]
[1733401406401,0.68329705,102810.0,102790.0,0.30243341]
[1733401406639,0.68329705,102810.0,102790.0,0.41138888]
[1733401406847,0.68329705,102810.0,102790.0,0.60595988]
[1733401407055,0.48875305,102810.0,102790.0,0.60595988]
[1733401407258,0.68330105,102810.0,102790.0,0.60595988]
[1733401408295,0.68330005,102810.0,102790.0,0.41138888]
[1733401408615,0.68330005,102810.0,102790.0,0.60595988]
[1733401409222,0.29520071,102800.0,102790.0,0.0819]
[1733401409421,0.29422805,102800.0,102790.0,0.0819]
[1733401410904,0.48879305,102800.0,102780.0,0.40034648]
[1733401411021,0.68336305,102800.0,102780.0,0.40034648]
[1733401411903,0.194571,102790.0,102780.0,0.38542747]
[1733401412118,0.48879305,102800.0,102780.0,0.38542747]
[1733401412343,0.68335905,102800.0,102780.0,0.38542747]
[1733401412990,0.68335905,102800.0,102780.0,0.3856036]
[1733401413651,0.68335905,102800.0,102780.0,0.5801926]
[1733401413886,0.68335905,102800.0,102780.0,0.3856036]
[1733401414317,0.68335905,102800.0,102780.0,0.5801936]
[1733401414560,0.68335905,102800.0,102770.0,0.28432304]
[1733401414759,0.68335905,102800.0,102780.0,0.30451131]
[1733401414970,0.29422805,102800.0,102780.0,0.49908931]
[1733401415185,0.09967605,102800.0,102790.0,0.10895547]
[1733401415623,0.29422805,102800.0,102790.0,0.10895547]
[1733401416509,0.09967605,102800.0,102790.0,0.29379747]
[1733401416755,0.09967605,102800.0,102790.0,0.10895547]
[1733401416937,0.10064871,102800.0,102790.0,0.10895547]
[1733401417156,0.29520071,102800.0,102790.0,0.10895547]
[1733401417364,0.29422805,102800.0,102790.0,0.10895547]
[1733401417803,0.29422805,102800.0,102780.0,0.60522527]
[1733401418042,0.49052365,102800.0,102780.0,0.60522527]
[1733401418248,0.10141165,102800.0,102790.0,0.10895547]
[1733401418453,0.10238431,102800.0,102790.0,0.184842]
[1733401419284,0.10238431,102800.0,102780.0,0.79007627]
[1733401419862,0.10238431,102800.0,102780.0,0.68777643]
[1733401421346,0.10141165,102800.0,102780.0,0.68777643]
[1733401421939,0.10141165,102800.0,102780.0,0.50292443]
[1733401422194,0.10141165,102800.0,102790.0,0.184842]
[1733401422410,0.10147032,102800.0,102790.0,0.184842]
[1733401423415,0.10147032,102800.0,102780.0,0.55112443]
[1733401423739,0.29700298,102800.0,102780.0,0.44216896]
[1733401423948,0.29603032,102800.0,102780.0,0.62701996]
[1733401424156,0.10147032,102800.0,102780.0,0.73597543]
[1733401424416,0.29699498,102800.0,102780.0,0.73597543]
[1733401424618,0.29602232,102800.0,102780.0,0.73597543]
[1733401425017,0.10147032,102800.0,102780.0,0.73597543]
[1733401425294,0.10244298,102800.0,102790.0,0.184842]
[1733401425749,0.29699498,102800.0,102780.0,0.1759918]
[1733401425950,0.49058532,102800.0,102780.0,0.17696464]
[1733401426633,0.49058532,102800.0,102780.0,0.35208764]
[1733401426832,0.29602232,102800.0,102780.0,0.52721064]
[1733401427280,0.29602232,102800.0,102780.0,0.63616611]
[1733401427496,0.10147032,102800.0,102780.0,0.46104211]
[1733401428055,0.10147032,102800.0,102790.0,0.175114]
[1733401428224,0.00179427,102800.0,102790.0,0.36096947]
[1733401432592,0.00179427,102800.0,102790.0,0.37585994]
[1733401434539,0.00179427,102800.0,102790.0,0.29895994]
[1733401438085,0.32593093,102800.0,102780.0,0.2732798]
[1733401438295,0.61919432,102800.0,102780.0,0.52966974]
[1733401439447,0.61919332,102800.0,102780.0,0.52966974]
[1733401440255,0.81375732,102800.0,102780.0,0.56712499]
[1733401440508,0.61919332,102800.0,102780.0,0.56712499]
[1733401440727,0.42463032,102800.0,102780.0,0.75197799]
[1733401441173,0.61919032,102800.0,102780.0,0.75197799]
[1733401441367,0.61919032,102800.0,102780.0,0.56712499]
[1733401441573,0.61919032,102800.0,102780.0,0.58247426]
[1733401442108,0.61919032,102800.0,102780.0,0.37344382]
[1733401442538,0.61919032,102800.0,102780.0,0.55829482]
[1733401444588,0.42463032,102800.0,102780.0,0.55829482]
[1733401445848,0.42463032,102800.0,102780.0,0.44930263]
[1733401446052,0.42463032,102800.0,102780.0,0.37344182]
[1733401446268,0.42463032,102800.0,102780.0,0.54856682]
[1733401447252,0.42463032,102800.0,102780.0,0.72368982]
[1733401447469,0.23007032,102800.0,102780.0,0.72368982]
[1733401447693,0.42462232,102800.0,102780.0,0.72368982]
[1733401448636,0.42462232,102800.0,102780.0,0.53883882]
[1733401449050,0.42462232,102800.0,102780.0,0.71396182]
[1733401449259,0.42462232,102800.0,102780.0,0.53883682]